fUST/lending_fUST_20240221
["ID","MTS","AMOUNT","RATE_DAILY","PERIOD"]
[314631312,1708476642058,-500.0,0.00020356,2]
[314631313,1708476642067,-500.0,0.00020356,2]
[314631314,1708476642202,-576.59099946,0.00020356,2]
[314631315,1708476642212,-642.98,0.00020356,2]
[314631316,1708476642221,-500.0,0.00020356,2]
[314631317,1708476642231,-284.27642,0.00020356,2]
[314631318,1708476642240,-284.27642,0.00020356,2]
[314631319,1708476642250,-284.27642,0.00020356,2]
[314631320,1708476642259,-284.27642,0.00020356,2]
[314631321,1708476642269,-284.27642,0.00020356,2]
[314631322,1708476642281,-284.27642,0.00020356,2]
[314631323,1708476642290,-500.0,0.00020356,2]
[314631324,1708476642299,-500.0,0.00020356,2]
[314631325,1708476642309,-500.0,0.00020356,2]
[314631326,1708476642319,-500.0,0.00020356,2]
[314631327,1708476642328,-500.0,0.00020356,2]
[314631328,1708476642337,-241.039597,0.00020356,2]
[314631329,1708476642346,-241.039598,0.00020356,2]
[314631330,1708476642356,-2875.62,0.00020356,2]
[314631331,1708476642367,-592.54155245,0.00020356,2]
[314631332,1708476642377,-500.0,0.00020356,2]
[314631333,1708476642388,-500.0,0.00020356,2]
[314631334,1708476642397,-500.0,0.00020356,2]
[314631335,1708476642407,-750.84,0.00020356,2]
[314631336,1708476642417,-514.73,0.00020356,2]
[314631337,1708476642427,-500.0,0.00020356,2]
[314631338,1708476642436,-500.0,0.00020356,2]
[314631339,1708476642446,-200.0,0.00020356,2]
[314631340,1708476642455,-791.89,0.00020356,2]
[314631341,1708476642464,-500.0,0.00020356,2]
[314631342,1708476642473,-284.27642,0.00020357,2]
[314631343,1708476642482,-284.27642,0.00020357,2]
[314631344,1708476642491,-500.0,0.00020358,2]
[314631345,1708476642500,-500.0,0.00020358,2]
[314631346,1708476642510,-500.0,0.00020358,2]
[314631347,1708476642519,-500.0,0.00020358,2]
[314631348,1708476642528,-500.0,0.00020358,2]
[314631349,1708476642537,-500.0,0.00020358,2]
[314631350,1708476642546,-500.0,0.00020358,2]
[314631351,1708476642555,-212.31781007,0.00020358,2]
[314631352,1708476642564,-500.0,0.00020358,2]
[314631353,1708476642574,-500.0,0.00020358,2]
[314631354,1708476642583,-500.34114932,0.00020358,2]
[314631355,1708476642592,-500.0,0.00020358,2]
[314631356,1708476642602,-284.27642,0.00020358,2]
[314631357,1708476642610,-284.27642,0.00020358,2]
[314631358,1708476642620,-284.27642,0.00020358,2]
[314631359,1708476642630,-284.27642,0.00020358,2]
[314631360,1708476642639,-284.27642,0.00020358,2]
[314631361,1708476642649,-284.276428,0.00020358,2]
[314631362,1708476642658,-500.0,0.00020358,2]
[314631363,1708476642667,-481.316028,0.00020358,2]
[314631364,1708476642676,-568.72142109,0.00020358,2]
[314631365,1708476642686,-572.85971442,0.00020358,2]
[314631366,1708476642695,-500.0,0.00020358,2]
[314631367,1708476642705,-500.0,0.00020358,2]
[314631368,1708476642714,-601.16,0.00020358,2]
[314631369,1708476642723,-282.74228048,0.00020358,2]
[314631370,1708476642732,-500.0,0.0002036,2]
[314631371,1708476642742,-503.83631218,0.0002036,2]
[314631372,1708476642751,-1335.71,0.0002036,2]
[314631373,1708476642760,-502.04717173,0.0002036,2]
[314631374,1708476642769,-500.0,0.0002036,2]
[314631375,1708476642779,-500.0,0.0002036,2]
[314631376,1708476642788,-650.93,0.0002036,2]
[314631377,1708476642797,-488.31927747,0.0002036,2]
[314631378,1708476642807,-500.0,0.0002036,2]
[314631379,1708476642816,-500.0,0.0002036,2]
[314631380,1708476642825,-500.0,0.0002036,2]
[314631381,1708476642835,-500.0,0.0002036,2]
[314631382,1708476642845,-500.0,0.0002036,2]
[314631383,1708476642854,-615.53423449,0.0002036,2]
[314631384,1708476642863,-500.0,0.0002036,2]
[314631385,1708476642872,-709.08,0.0002036,2]
[314631386,1708476642883,-500.0,0.0002036,2]
[314631387,1708476642892,-500.0,0.0002036,2]
[314631388,1708476642901,-694.73,0.0002036,2]
[314631389,1708476642911,-500.0,0.0002036,2]
[314631390,1708476642920,-500.0,0.0002036,2]
[314631391,1708476642929,-1664.59,0.00020363,2]
[314631392,1708476642939,-925.42983751,0.00020367,2]
[314631393,1708476642948,-61350.52001239,0.00020371,4]
[314631394,1708476642957,-200.4151623,0.000204,2]
[314631395,1708476642966,-153.0,0.000204,2]
[314631396,1708476642975,-153.0,0.000204,2]
[314631397,1708476642984,-153.0,0.000204,2]
[314631398,1708476642994,-154.2227723,0.000204,2]
[314631399,1708476643003,-300.0,0.00020415,2]
[314631400,1708476643013,-8889.8543621,0.00020464,2]
[314631401,1708476643022,-2094.77840395,0.00020477,2]
[314631402,1708476643031,-169.81027582,0.0002048,2]
[314631403,1708476643041,-38542.59331645,0.00020482,2]
[314631404,1708476643051,-19929.42528023,0.00020484,2]
[314631405,1708476643060,-5000.0,0.00020484,2]
[314631406,1708476643069,-5000.0,0.0002049,2]
[314631407,1708476643078,-5000.0,0.0002049,2]
[314631408,1708476643088,-4524.59699132,0.0002049,2]
[314631409,1708476643097,-5000.0,0.0002049,2]
[314631410,1708476643107,-50000.0,0.00020494,2]
[314631411,1708476643116,-61324.82763188,0.00020496,2]
[314631412,1708476643125,-2194.95608081,0.00020496,2]
[314631413,1708476643134,-40945.66269872,0.00020497,2]
[314631414,1708476643144,-5000.0,0.00020497,2]
[314631415,1708476643154,-200.4151623,0.000205,2]
[314631416,1708476643163,-200.4151623,0.000205,2]
[314631417,1708476643173,-153.0,0.000205,2]
[314631418,1708476643182,-306.0,0.000205,2]
[314631419,1708476643191,-200.4151623,0.000205,2]
[314631420,1708476643200,-153.0,0.000205,2]
[314631421,1708476643210,-153.0,0.000205,2]
[314631422,1708476643219,-400.2188574,0.000205,2]
[314631423,1708476643229,-157.002704,0.000205,2]
[314631424,1708476643238,-306.0,0.000205,2]
[314631425,1708476643247,-200.4151623,0.000205,2]
[314631426,1708476643256,-306.0,0.000205,2]
[314631427,1708476643267,-153.0,0.000205,2]
[314631428,1708476643279,-153.0,0.000205,2]
[314631429,1708476643289,-153.0,0.000205,2]
[314631430,1708476643298,-21069.66963028,0.00020502,2]
[314631431,1708476643307,-50000.0,0.00020509,2]
[314631433,1708476643317,-39255.37,0.00020528,2]
[314631435,1708476643326,-500.0,0.00020528,2]
[314631436,1708476643335,-500.0,0.00020528,2]
[314631437,1708476643345,-1591.8,0.00020528,2]
[314631438,1708476643355,-3615.48,0.00020528,2]
[314631439,1708476643365,-300.0,0.00020577,2]
[314631441,1708476643374,-153.0,0.000206,2]
[314631443,1708476643384,-153.0,0.000206,2]
[314631445,1708476643392,-153.0,0.000206,2]
[314631447,1708476643401,-200.4151623,0.000206,2]
[314631448,1708476643410,-4158.18202144,0.00020603,2]
[314631449,1708476643419,-1683.41210192,0.0002062,2]
[314631450,1708476643429,-500.0,0.00020626,2]
[314631451,1708476643439,-500.0,0.00020626,2]
[314631452,1708476643448,-1417.51,0.00020626,2]
[314631453,1708476643457,-500.0,0.00020626,2]
[314631454,1708476643467,-500.0,0.00020626,2]
[314631455,1708476643476,-632.04,0.00020626,2]
[314631456,1708476643485,-395.53719092,0.00020626,2]
[314631457,1708476643494,-500.0,0.00020626,2]
[314631458,1708476643503,-500.0,0.00020626,2]
[314631459,1708476643512,-500.0,0.00020626,2]
[314631460,1708476643521,-500.0,0.00020626,2]
[314631461,1708476643530,-500.0,0.00020626,2]
[314631462,1708476643539,-500.0,0.00020626,2]
[314631463,1708476643548,-1552.82,0.00020626,2]
[314631464,1708476643557,-5615.59,0.00020626,2]
[314631465,1708476643566,-1299.6,0.00020626,2]
[314631466,1708476643575,-500.0,0.00020626,2]
[314631467,1708476643584,-500.0,0.00020626,2]
[314631468,1708476643593,-500.0,0.00020626,2]
[314631469,1708476643602,-621.92,0.00020626,2]
[314631470,1708476643612,-562.06,0.00020626,2]
[314631471,1708476643622,-500.0,0.00020626,2]
[314631472,1708476643632,-536.61,0.00020626,2]
[314631473,1708476643641,-500.0,0.00020626,2]
[314631474,1708476643650,-2048.19,0.00020626,2]
[314631475,1708476643659,-500.0,0.00020626,2]
[314631476,1708476643668,-42916.44,0.00020626,2]
[314631477,1708476643677,-488.45494206,0.00020626,2]
[314631478,1708476643687,-2558.7,0.00020626,2]
[314631479,1708476643696,-500.0,0.00020626,2]
[314631480,1708476643705,-830.94,0.00020626,2]
[314631482,1708476643714,-500.21,0.00020626,2]
[314631483,1708476643723,-640.65731491,0.00020626,2]
[314631484,1708476643733,-1409.36,0.00020626,2]
[314631485,1708476643742,-500.0,0.00020626,2]
[314631486,1708476643751,-500.0,0.00020626,2]
[314631487,1708476643761,-500.0,0.00020626,2]
[314631488,1708476643770,-2376.87,0.00020626,2]
[314631489,1708476643779,-500.0,0.00020626,2]
[314631490,1708476643789,-500.0,0.00020627,2]
[314631491,1708476643798,-500.0,0.00020627,2]
[314631492,1708476643807,-686.64,0.00020627,2]
[314631493,1708476643817,-500.0,0.00020627,2]
[314631494,1708476643826,-500.0,0.00020627,2]
[314631495,1708476643835,-500.0,0.00020627,2]
[314631496,1708476643845,-563.92,0.00020627,2]
[314631497,1708476643854,-500.0,0.00020627,2]
[314631498,1708476643863,-500.0,0.00020627,2]
[314631499,1708476643872,-500.0,0.00020627,2]
[314631500,1708476643882,-500.0,0.00020627,2]
[314631501,1708476643891,-393.76411816,0.00020627,2]
[314631502,1708476643901,-500.0,0.00020627,2]
[314631503,1708476643910,-999.94,0.00020627,2]
[314631504,1708476643920,-500.0,0.00020627,2]
[314631505,1708476643928,-563.15,0.00020627,2]
[314631506,1708476643937,-500.0,0.00020627,2]
[314631507,1708476643946,-1001.4,0.00020627,2]
[314631508,1708476643955,-500.0,0.00020627,2]
[314631509,1708476643965,-1505.06,0.00020627,2]
[314631510,1708476643974,-500.0,0.00020627,2]
[314631511,1708476643983,-3267.46,0.00020627,2]
[314631512,1708476643992,-500.0,0.00020627,2]
[314631513,1708476644001,-500.0,0.00020627,2]
[314631514,1708476644010,-500.0,0.00020627,2]
[314631515,1708476644019,-678.64,0.00020627,2]
[314631516,1708476644028,-500.0,0.00020627,2]
[314631517,1708476644037,-500.0,0.00020627,2]
[314631518,1708476644046,-500.0,0.00020627,2]
[314631519,1708476644056,-3759.04,0.00020627,2]
[314631520,1708476644065,-500.0,0.00020627,2]
[314631521,1708476644074,-500.0,0.00020627,2]
[314631522,1708476644083,-4148.18,0.00020627,2]
[314631523,1708476644092,-657.81,0.00020627,2]
[314631524,1708476644101,-5076.96,0.00020627,2]
[314631525,1708476644111,-500.0,0.00020627,2]
[314631526,1708476644120,-500.0,0.00020627,2]
[314631527,1708476644129,-500.0,0.00020627,2]
[314631528,1708476644139,-500.0,0.00020627,2]
[314631529,1708476644149,-500.0,0.00020627,2]
[314631530,1708476644158,-500.0,0.00020627,2]
[314631531,1708476644168,-669.26,0.00020627,2]
[314631532,1708476644177,-500.0,0.00020627,2]
[314631533,1708476644186,-946.93,0.00020627,2]
[314631534,1708476644196,-500.0,0.00020627,2]
[314631535,1708476644205,-500.0,0.00020627,2]
[314631536,1708476644214,-500.0,0.00020627,2]
[314631537,1708476644224,-500.0,0.00020627,2]
[314631538,1708476644233,-500.0,0.00020627,2]
[314631539,1708476644242,-616.97596921,0.00020627,2]
[314631540,1708476644251,-500.0,0.00020627,2]
[314631541,1708476644261,-500.0,0.00020627,2]
[314631542,1708476644271,-500.0,0.00020628,2]
[314631543,1708476644282,-3332.23,0.00020628,2]
[314631544,1708476644293,-14877.77,0.00020628,2]
[314631545,1708476644302,-21403.26,0.00020628,2]
[314631546,1708476644312,-6048.99,0.00020628,2]
[314631547,1708476644322,-4775.17,0.00020628,2]
[314631548,1708476644331,-500.0,0.00020628,2]
[314631549,1708476644340,-4478.92,0.00020628,2]
[314631550,1708476644350,-500.0,0.00020628,2]
[314631551,1708476644359,-500.0,0.00020628,2]
[314631552,1708476644369,-500.0,0.00020628,2]
[314631553,1708476644378,-500.0,0.00020628,2]
[314631554,1708476644389,-906.85,0.00020628,2]
[314631555,1708476644398,-1090.17,0.00020628,2]
[314631556,1708476644407,-5490.48,0.00020628,2]
[314631557,1708476644417,-500.0,0.00020628,2]
[314631558,1708476644426,-500.0,0.00020628,2]
[314631559,1708476644435,-500.0,0.00020629,2]
[314631560,1708476644444,-500.0,0.00020629,2]
[314631561,1708476644453,-500.0,0.00020629,2]
[314631562,1708476644463,-500.0,0.00020629,2]
[314631563,1708476644472,-500.0,0.00020629,2]
[314631564,1708476644482,-500.0,0.00020629,2]
[314631565,1708476644491,-500.0,0.00020629,2]
[314631566,1708476644500,-500.0,0.00020629,2]
[314631567,1708476644510,-500.0,0.00020629,2]
[314631568,1708476644519,-500.0,0.00020629,2]
[314631569,1708476644528,-500.0,0.00020629,2]
[314631570,1708476644537,-500.0,0.00020629,2]
[314631571,1708476644546,-1391.85,0.00020629,2]
[314631572,1708476644556,-1683.81,0.00020629,2]
[314631573,1708476644565,-2996.07,0.00020629,2]
[314631574,1708476644574,-565.22914566,0.00020629,2]
[314631575,1708476644583,-257.48588981,0.00020629,2]
[314631576,1708476644592,-500.0,0.00020629,2]
[314631577,1708476644602,-500.0,0.00020629,2]
[314631578,1708476644611,-500.0,0.00020629,2]
[314631579,1708476644620,-500.0,0.00020629,2]
[314631580,1708476644629,-716.29,0.00020629,2]
[314631581,1708476644640,-500.0,0.00020629,2]
[314631582,1708476644649,-500.0,0.00020629,2]
[314631583,1708476644658,-500.56111114,0.00020629,2]
[314631584,1708476644667,-500.0,0.00020629,2]
[314631585,1708476644676,-1000.0,0.00020629,2]
[314631586,1708476644686,-500.0,0.00020629,2]
[314631587,1708476644695,-500.0,0.00020629,2]
[314631588,1708476644704,-500.0,0.00020629,2]
[314631589,1708476644713,-795.08,0.00020629,2]
[314631590,1708476644722,-614.70782231,0.00020629,2]
[314631591,1708476644731,-520.83383471,0.00020629,2]
[314631592,1708476644741,-500.0,0.00020629,2]
[314631593,1708476644749,-1775.74,0.00020629,2]
[314631594,1708476644759,-500.0,0.00020629,2]
[314631595,1708476644768,-500.0,0.00020629,2]
[314631596,1708476644777,-500.0,0.00020629,2]
[314631597,1708476644786,-651.57,0.00020629,2]
[314631598,1708476644796,-500.0,0.00020629,2]
[314631599,1708476644806,-500.0,0.00020629,2]
[314631600,1708476644815,-500.0,0.00020629,2]
[314631601,1708476644824,-500.0,0.00020629,2]
[314631602,1708476644834,-576.77,0.00020629,2]
[314631603,1708476644843,-242.27992904,0.00020629,2]
[314631604,1708476644852,-500.0,0.00020629,2]
[314631605,1708476644861,-500.0,0.00020629,2]
[314631606,1708476644870,-500.0,0.00020629,2]
[314631607,1708476644879,-500.0,0.00020629,2]
[314631608,1708476644889,-500.0,0.00020629,2]
[314631609,1708476644899,-516.12,0.00020629,2]
[314631610,1708476644908,-500.0,0.00020629,2]
[314631611,1708476644918,-592.34,0.00020629,2]
[314631612,1708476644927,-500.0,0.00020629,2]
[314631613,1708476644936,-626.65,0.00020629,2]
[314631614,1708476644945,-500.0,0.00020629,2]
[314631615,1708476644954,-500.0,0.00020629,2]
[314631616,1708476645086,-1217.91,0.00020629,2]
[314631617,1708476645096,-500.0,0.00020629,2]
[314631618,1708476645106,-1556.28,0.00020629,2]
[314631619,1708476645116,-500.0,0.00020629,2]
[314631620,1708476645125,-502.06,0.00020629,2]
[314631621,1708476645136,-500.0,0.00020629,2]
[314631622,1708476645145,-500.0,0.00020629,2]
[314631623,1708476645154,-1624.79,0.00020629,2]
[314631624,1708476645163,-608.99,0.00020629,2]
[314631625,1708476645173,-692.13,0.00020629,2]
[314631626,1708476645181,-500.0,0.00020629,2]
[314631627,1708476645191,-500.0,0.00020629,2]
[314631628,1708476645200,-553.41,0.00020629,2]
[314631629,1708476645209,-500.0,0.00020629,2]
[314631630,1708476645219,-500.0,0.00020629,2]
[314631631,1708476645228,-500.0,0.00020629,2]
[314631632,1708476645237,-500.0,0.00020629,2]
[314631633,1708476645246,-500.0,0.00020629,2]
[314631634,1708476645256,-500.0,0.00020629,2]
[314631635,1708476645266,-700.09,0.00020629,2]
[314631636,1708476645276,-500.0,0.00020629,2]
[314631637,1708476645286,-500.0,0.00020629,2]
[314631638,1708476645295,-6148.75,0.00020629,2]
[314631639,1708476645304,-500.0,0.00020629,2]
[314631640,1708476645314,-500.0,0.00020629,2]
[314631641,1708476645323,-500.0,0.00020629,2]
[314631642,1708476645332,-500.0,0.00020629,2]
[314631643,1708476645342,-500.0,0.00020629,2]
[314631644,1708476645352,-672.71,0.00020629,2]
[314631645,1708476645361,-500.0,0.00020629,2]
[314631646,1708476645370,-680.04,0.00020629,2]
[314631647,1708476645378,-1000.0,0.00020629,2]
[314631648,1708476645389,-500.0,0.00020629,2]
[314631649,1708476645398,-500.0,0.00020629,2]
[314631650,1708476645407,-500.0,0.00020629,2]
[314631651,1708476645416,-500.0,0.00020629,2]
[314631652,1708476645425,-500.0,0.00020629,2]
[314631653,1708476645434,-810.02,0.00020629,2]
[314631654,1708476645444,-235.96892945,0.00020629,2]
[314631655,1708476645453,-500.0,0.00020629,2]
[314631656,1708476645462,-8441.37,0.00020629,2]
[314631657,1708476645471,-500.0,0.00020629,2]
[314631658,1708476645481,-500.0,0.00020629,2]
[314631659,1708476645490,-873.06,0.00020629,2]
[314631660,1708476645500,-500.0,0.00020629,2]
[314631661,1708476645510,-500.0,0.00020629,2]
[314631662,1708476645520,-500.0,0.00020629,2]
[314631663,1708476645530,-500.0,0.00020629,2]
[314631664,1708476645539,-500.0,0.00020629,2]
[314631665,1708476645549,-500.0,0.00020629,2]
[314631666,1708476645559,-500.0,0.00020629,2]
[314631667,1708476645568,-1277.74,0.00020629,2]
[314631668,1708476645579,-500.0,0.00020629,2]
[314631669,1708476645589,-500.0,0.00020629,2]
[314631670,1708476645599,-21765.43,0.00020629,2]
[314631671,1708476645610,-500.0,0.00020629,2]
[314631672,1708476645621,-500.0,0.00020629,2]
[314631673,1708476645631,-500.0,0.00020629,2]
[314631674,1708476645645,-265.14873351,0.00020629,2]
[314631675,1708476645656,-901.41,0.00020629,2]
[314631676,1708476645666,-4206.8,0.00020629,2]
[314631677,1708476645677,-500.0,0.00020629,2]
[314631678,1708476645687,-500.0,0.00020629,2]
[314631679,1708476645697,-668.61,0.00020629,2]
[314631680,1708476645708,-500.0,0.00020629,2]
[314631681,1708476645718,-500.0,0.00020629,2]
[314631682,1708476645727,-936.53,0.00020629,2]
[314631683,1708476645737,-588.91482314,0.00020629,2]
[314631684,1708476645746,-512.55610441,0.00020629,2]
[314631685,1708476645755,-500.0,0.00020629,2]
[314631686,1708476645764,-500.0,0.00020629,2]
[314631687,1708476645774,-500.0,0.00020629,2]
[314631688,1708476645784,-500.0,0.00020629,2]
[314631689,1708476645793,-500.0,0.00020629,2]
[314631690,1708476645803,-155.02551061,0.00020629,2]
[314631691,1708476645814,-500.0,0.00020629,2]
[314631692,1708476645823,-500.0,0.00020629,2]
[314631693,1708476645832,-4102.11,0.00020629,2]
[314631694,1708476645842,-500.0,0.00020629,2]
[314631695,1708476645851,-500.0,0.00020629,2]
[314631696,1708476645861,-500.0,0.00020629,2]
[314631697,1708476645871,-500.0,0.00020629,2]
[314631698,1708476645881,-500.0,0.00020629,2]
[314631699,1708476645893,-500.0,0.00020629,2]
[314631700,1708476645903,-508.13,0.00020629,2]
[314631701,1708476645912,-500.0,0.00020629,2]
[314631702,1708476645921,-646.31,0.00020629,2]
[314631703,1708476645930,-500.0,0.00020629,2]
[314631704,1708476645939,-6242.0,0.00020629,2]
[314631705,1708476645948,-500.0,0.00020629,2]
[314631706,1708476645957,-404.64355252,0.00020629,2]
[314631707,1708476645966,-3033.0,0.00020629,2]
[314631708,1708476645975,-500.0,0.00020629,2]
[314631709,1708476645986,-607.97,0.00020629,2]
[314631710,1708476645996,-7016.83,0.00020629,2]
[314631711,1708476646005,-500.0,0.00020629,2]
[314631712,1708476646014,-500.0,0.00020629,2]
[314631713,1708476646023,-841.34,0.0002063,2]
[314631714,1708476646032,-151.0,0.0002063,2]
[314631715,1708476646041,-500.0,0.0002063,2]
[314631716,1708476646051,-500.0,0.0002063,2]
[314631717,1708476646061,-500.0,0.0002063,2]
[314631718,1708476646070,-500.0,0.0002063,2]
[314631719,1708476646079,-642.98,0.0002063,2]
[314631720,1708476646088,-500.0,0.0002063,2]
[314631721,1708476646098,-500.0,0.0002063,2]
[314631722,1708476646107,-500.0,0.0002063,2]
[314631723,1708476646116,-500.0,0.0002063,2]
[314631724,1708476646126,-500.0,0.0002063,2]
[314631725,1708476646136,-2875.62,0.0002063,2]
[314631726,1708476646145,-500.0,0.0002063,2]
[314631727,1708476646155,-500.0,0.0002063,2]
[314631729,1708476646164,-500.0,0.0002063,2]
[314631730,1708476646175,-750.84,0.0002063,2]
[314631731,1708476646185,-514.73,0.0002063,2]
[314631732,1708476646194,-500.0,0.0002063,2]
[314631733,1708476646204,-500.0,0.0002063,2]
[314631734,1708476646214,-200.0,0.0002063,2]
[314631735,1708476646223,-791.89,0.0002063,2]
[314631737,1708476646232,-500.0,0.0002063,2]
[314631738,1708476646242,-607.2380826,0.00020632,2]
[314631740,1708476646251,-500.0,0.00020632,2]
[314631741,1708476646260,-500.0,0.00020632,2]
[314631744,1708476646478,-500.0,0.00020632,2]
[314631745,1708476646488,-500.0,0.00020632,2]
[314631746,1708476646497,-500.0,0.00020632,2]
[314631747,1708476646507,-500.0,0.00020632,2]
[314631748,1708476646516,-500.0,0.00020632,2]
[314631749,1708476646525,-500.0,0.00020632,2]
[314631750,1708476646534,-500.0,0.00020632,2]
[314631751,1708476646543,-500.0,0.00020632,2]
[314631752,1708476646552,-518.53003274,0.00020632,2]
[314631753,1708476646561,-601.16,0.00020632,2]
[314631754,1708476646571,-500.0,0.00020634,2]
[314631755,1708476646581,-1335.71,0.00020634,2]
[314631756,1708476646592,-500.0,0.00020634,2]
[314631757,1708476646602,-500.0,0.00020634,2]
[314631758,1708476646612,-650.93,0.00020634,2]
[314631759,1708476646627,-500.0,0.00020634,2]
[314631760,1708476646641,-500.0,0.00020634,2]
[314631761,1708476646651,-338.12142664,0.00020634,2]
[314631762,1708476646661,-159.38910075,0.00020634,2]
[314631763,1708476646671,-460.42970743,0.00020634,2]
[314631764,1708476646680,-500.0,0.00020634,2]
[314631765,1708476646690,-709.08,0.00020634,2]
[314631766,1708476646699,-500.0,0.00020634,2]
[314631767,1708476646709,-500.0,0.00020634,2]
[314631768,1708476646719,-694.73,0.00020634,2]
[314631769,1708476646728,-500.0,0.00020634,2]
[314631770,1708476646738,-500.0,0.00020634,2]
[314631771,1708476646748,-1664.59,0.00020637,2]
[314631772,1708476646757,-300.0,0.00020738,2]
[314631773,1708476646766,-500.0,0.00020802,2]
[314631774,1708476646775,-39255.37,0.00020802,2]
[314631775,1708476646784,-500.0,0.00020802,2]
[314631776,1708476646793,-1591.8,0.00020802,2]
[314631777,1708476646804,-3615.48,0.00020802,2]
[314631778,1708476646813,-500.0,0.00020822,2]
[314631779,1708476646823,-533.58392576,0.00020822,2]
[314631780,1708476646831,-646.26830284,0.00020822,2]
[314631781,1708476646840,-500.0,0.00020822,2]
[314631782,1708476646849,-500.0,0.00020822,2]
[314631783,1708476646858,-370.96679074,0.00020822,2]
[314631784,1708476646867,-533.58392576,0.00020822,2]
[314631785,1708476646876,-500.0,0.00020822,2]
[314631786,1708476646886,-533.58392576,0.00020822,2]
[314631787,1708476646895,-533.58392576,0.00020822,2]
[314631788,1708476646904,-379.41298934,0.00020822,2]
[314631789,1708476646913,-533.58392576,0.00020822,2]
[314631790,1708476646922,-533.58392576,0.00020822,2]
[314631791,1708476646931,-533.58392576,0.00020822,2]
[314631792,1708476646938,-533.58392576,0.00020822,2]
[314631793,1708476646947,-533.58392576,0.00020822,2]
[314631794,1708476646956,-533.58392576,0.00020822,2]
[314631795,1708476646965,-533.58392576,0.00020822,2]
[314631796,1708476646975,-533.58392576,0.00020822,2]
[314631797,1708476646984,-533.58392576,0.00020822,2]
[314631798,1708476646993,-533.58392576,0.00020822,2]
[314631799,1708476647002,-533.58392576,0.00020822,2]
[314631800,1708476647011,-533.58392576,0.00020822,2]
[314631802,1708476647020,-533.58392576,0.00020822,2]
[314631804,1708476647029,-533.58392576,0.00020822,2]
[314631806,1708476647038,-533.58392576,0.00020822,2]
[314631807,1708476647047,-533.58392576,0.00020822,2]
[314631808,1708476647056,-533.58392576,0.00020822,2]
[314631809,1708476647065,-533.58392576,0.00020822,2]
[314631810,1708476647075,-533.58392576,0.00020822,2]
[314631811,1708476647084,-533.58392576,0.00020822,2]
[314631812,1708476647093,-533.58392576,0.00020822,2]
[314631813,1708476647102,-533.58392576,0.00020822,2]
[314631814,1708476647112,-533.58392576,0.00020822,2]
[314631815,1708476647121,-533.58392576,0.00020822,2]
[314631816,1708476647130,-533.58392576,0.00020822,2]
[314631817,1708476647142,-533.58392576,0.00020822,2]
[314631818,1708476647152,-533.58392576,0.00020822,2]
[314631819,1708476647161,-533.58392576,0.00020822,2]
[314631820,1708476647171,-533.58392576,0.00020822,2]
[314631821,1708476647180,-533.58392576,0.00020822,2]
[314631822,1708476647189,-533.58392576,0.00020822,2]
[314631823,1708476647198,-533.58392576,0.00020822,2]
[314631824,1708476647207,-533.58392576,0.00020822,2]
[314631825,1708476647217,-533.58392576,0.00020822,2]
[314631826,1708476647226,-533.58392576,0.00020822,2]